Workbook

Sheet 客戶獲利分析
B2: 公司名稱
B3: 客戶獲利分析
B4: 準備日期：[輸入日期]
C6: 市場名稱 1 | D6: 市場名稱 2 | E6: 市場名稱 3 | F6: 整體
B8: 客戶活動
B10: 活躍客戶數量 - 期初 | C10: 5 | D10: 8 | E10: 8 | F10: =SUM(C10:E10) -> 21
B11: 新增客戶數量 | C11: 2 | D11: 4 | E11: 4 | F11: =SUM(C11:E11) -> 10
B12: 損失/終止客戶數量 | C12: 1 | D12: 2 | E12: 2 | F12: 5
B13: 活躍客戶數量 - 期末 | C13: =C10+C11-C12 -> 6 | D13: =D10+D11-D12 -> 10 | E13: 10 | F13: 26
B15: 獲利分析
B17: 各市場收益 | C17: NT$1,500,000.00 | D17: NT$1,800,000.00 | E17: NT$2,500,000.00 | F17: =SUM(C17:E17) -> NT$5,800,000.00
B18: 加權 | C18: =C17/$F$17 -> 26% | D18: =D17/$F$17 -> 31% | E18: 43%
B20: 銷售成本
B22: 持續服務與支援成本 | C22: NT$1,000,000.00 | D22: NT$1,400,000.00 | E22: NT$1,400,000.00 | F22: =SUM(C22:E22) -> NT$3,800,000.00
B23: 其他直接客戶成本 | C23: NT$200,000.00 | D23: NT$100,000.00 | E23: NT$100,000.00 | F23: =SUM(C23:E23) -> NT$400,000.00
B24: 總銷售成本 | C24: =SUM(C22:C23) -> NT$1,200,000.00 | D24: =SUM(D22:D23) -> NT$1,500,000.00 | E24: NT$1,500,000.00 | F24: NT$4,200,000.00
B25: 毛利 | C25: =C17-C24 -> NT$300,000.00 | D25: =D17-D24 -> NT$300,000.00 | E25: NT$1,000,000.00 | F25: NT$1,600,000.00
B26: 加權 | C26: =C25/$F$25 -> 19% | D26: =D25/$F$25 -> 19% | E26: 63%
B28: 獲取成本
B30: 直接客戶獲取 | C30: NT$105,000.00 | D30: NT$120,000.00 | E30: NT$235,000.00 | F30: =SUM(C30:E30) -> NT$460,000.00
B31: 客戶行銷 | C31: NT$150,000.00 | D31: NT$125,000.00 | E31: NT$275,000.00 | F31: =SUM(C31:E31) -> NT$550,000.00
B32: 客戶終止 | C32: NT$35,000.00 | D32: NT$10,000.00 | E32: NT$140,000.00 | F32: NT$185,000.00
B33: 總獲取成本 | C33: =SUM(C30:C32) -> NT$290,000.00 | D33: =SUM(D30:D32) -> NT$255,000.00 | E33: NT$650,000.00 | F33: NT$1,195,000.00
B34: 各市場客戶獲利 | C34: =C25-C33 -> NT$10,000.00 | D34: =D25-D33 -> NT$45,000.00 | E34: NT$350,000.00 | F34: NT$405,000.00
B35: 加權 | C35: =C34/$F$34 -> 2% | D35: =D34/$F$34 -> 11% | E35: 86%
B37: 每個市場的摘要計量
B39: 每獲取一位客戶的平均成本 | C39: =C30/C11 -> NT$52,500.00 | D39: =D30/D11 -> NT$30,000.00 | E39: NT$58,750.00 | F39: =F30/F11 -> NT$46,000.00
B40: 每位活躍客戶的平均行銷成本 | C40: =C31/C13 -> NT$25,000.00 | D40: =D31/D13 -> NT$12,500.00 | E40: NT$27,500.00 | F40: NT$21,153.85
B41: 每終止一位客戶的平均成本 | C41: =C32/C12 -> NT$35,000.00 | D41: =D32/D12 -> NT$5,000.00 | E41: NT$70,000.00 | F41: NT$37,000.00
B42: 每位客戶的平均獲益 (損失) | C42: =C34/C13 -> NT$1,666.67 | D42: =D34/D13 -> NT$4,500.00 | E42: NT$35,000.00 | F42: NT$15,576.92
